[Event "Vienna Chess Open 2019"]
[Site "Vienna"]
[Date "2019.08.22"]
[Round "7.11"]
[White "Kindermann, Stefan"]
[Black "Ibanez Aullana, Ramon"]
[Result "1-0"]
[ECO "B06"]
[WhiteElo "2316"]
[BlackElo "2316"]
[Annotator "NA"]
[PlyCount "83"]
[EventDate "2019.08.17"]
[EventType "swiss"]
[EventCountry "AUT"]
[SourceTitle "playchess.com"]
[Source "ChessBase"]
[SourceQuality "1"]
[TimeControl "40/5400+30:1800+30"]

1. e4 {[%emt 0:00:00]} g6 {[%emt 0:02:26]} 2. d4 {[%emt 0:00:14]} Bg7 {[%emt 0:00:08]} 3. Nc3 {[%emt 0:02:39]} a6 {[%emt 0:00:46]} 4. f4 {[%emt 0:03:48]} d5 {[%emt 0:00:13]} 5. e5 {[%emt 0:04:24]} h5 {[%emt 0:00:03]} 6. Nf3 {[%emt 0:01:34]} Nh6 {[%emt 0:00:08]} 7. Be3 {[%emt 0:01:03]} Nc6 {[%emt 0:06:33]} 8. Be2 {[%emt 0:03:27]} Bg4 {[%emt 0:00:33]} 9. h3 {[%emt 0:14:20]} Nf5 {[%emt 0:07:35]} 10. Bf2 {[%emt 0:00:38]} Bxf3 {[%emt 0:00:02]} 11. Bxf3 {[%emt 0:00:06]} e6 {[%emt 0:00:06]} 12. g3 {[%emt 0:02:17]} Na5 {[%emt 0:05:03]} 13. Qd3 {[%emt 0:04:13]} Bf8 {[%emt 0:16:08]} 14. Ne2 {[%emt 0:02:48]} b5 {[%emt 0:21:55]} 15. O-O-O {[%emt 0:08:53]} Nc4 {[%emt 0:00:47]} 16. g4 {[%emt 0:00:36]} Ng7 {[%emt 0:04:04]} 17. Kb1 {[%emt 0:01:23]} c6 {[%emt 0:00:48]} 18. b3 {[%emt 0:01:52]} Rb8 {[%emt 0:06:33]} 19. Ka1 {[%emt 0:02:54]} hxg4 {[%emt 0:05:40]} 20. hxg4 {[%emt 0:00:21]} Rxh1 {[%emt 0:00:07]} 21. Rxh1 {[%emt 0:01:11]} a5 {[%emt 0:00:36]} 22. bxc4 {[%emt 0:07:24]} bxc4 {[%emt 0:00:20]} 23. Qe3 {[%emt 0:00:20]} Qb6 {[%emt 0:05:59]} 24. Qc1 {[%emt 0:00:49]} Kd7 {[%emt 0:05:16]} 25. c3 {[%emt 0:06:48]} Ne8 {[%emt 0:00:16]} 26. Qc2 {[%emt 0:02:37]} Nc7 {[%emt 0:00:10]} 27. Rb1 {[%emt 0:01:14]} Nb5 {[%emt 0:00:02]} 28. Qd2 {[%emt 0:01:05]} a4 {[%emt 0:02:34]} 29. f5 {[%emt 0:01:38]} Qd8 {[%emt 0:06:15]} 30. fxe6+ {[%emt 0:02:07]} fxe6 {[%emt 0:00:01]} 31. g5 {[%emt 0:00:37]} Be7 {[%emt 0:00:49]} 32. Be3 {[%emt 0:00:22]} Qh8 {[%emt 0:02:03]} 33. Nf4 {[%emt 0:00:57]} Bxg5 {[%emt 0:00:13]} 34. Nxe6 {[%emt 0:02:45]} Be7 {[%emt 0:02:06]} 35. Nf4 {[%emt 0:01:41]} g5 {[%emt 0:00:22]} 36. Bg4+ {[%emt 0:00:38]} Ke8 {[%emt 0:00:18]} 37. Ng6 {[%emt 0:02:53]} Qh7 {[%emt 0:00:10]} 38. Bf5 {[%emt 0:00:16]} Qf7 {[%emt 0:01:09]} 39. Nxe7 {[%emt 0:00:37]} Kxe7 {[%emt 0:00:12]} 40. Bxg5+ {[%emt 0:00:22]} Ke8 {[%emt 0:00:43]} 41. Qc2 {[%emt 0:32:39]} Qg7 {[%emt 0:05:19]} 42. Bg6+ 1-0

[Event "Vienna Chess Open 2019"]
[Site "Vienna"]
[Date "2019.08.22"]
[Round "7.11"]
[White "Gueci, Tea"]
[Black "Zeller, Frank"]
[Result "0-1"]
[ECO "C77"]
[WhiteElo "2259"]
[BlackElo "2371"]
[Annotator "NA"]
[PlyCount "90"]
[EventDate "2019.08.17"]
[EventType "swiss"]
[EventCountry "AUT"]
[SourceTitle "playchess.com"]
[Source "ChessBase"]
[SourceQuality "1"]
[TimeControl "40/5400+30:1800+30"]

1. e4 {[%emt 0:00:00]} e5 {[%emt 0:00:00]} 2. Nf3 {[%emt 0:00:00]} Nc6 {[%emt 0:00:00]} 3. Bb5 {[%emt 0:00:00]} a6 {[%emt 0:00:00]} 4. Ba4 {[%emt 0:00:00]} Nf6 {[%emt 0:00:16]} 5. d3 {[%emt 0:00:00]} d6 {[%emt 0:02:02]} 6. c4 {[%emt 0:00:28]} Be7 {[%emt 0:05:44]} 7. h3 {[%emt 0:00:21]} O-O {[%emt 0:00:11]} 8. O-O {[%emt 0:00:10]} Nd7 {[%emt 0:00:44]} 9. Be3 {[%emt 0:00:23]} Bf6 {[%emt 0:12:32]} 10. Nc3 {[%emt 0:00:18]} Nc5 {[%emt 0:11:39]} 11. Bc2 {[%emt 0:06:03]} Ne6 {[%emt 0:01:12]} 12. Nd5 {[%emt 0:03:00]} Kh8 {[%emt 0:03:32]} 13. Qd2 {[%emt 0:04:49]} Rg8 {[%emt 0:06:16]} 14. b4 {[%emt 0:18:35]} g5 {[%emt 0:03:45]} 15. Nh2 {[%emt 0:14:20]} Nf4 {[%emt 0:03:07]} 16. Bd1 {[%emt 0:02:26]} Be6 {[%emt 0:01:00]} 17. Bf3 {[%emt 0:08:35]} Rg6 {[%emt 0:04:23]} 18. b5 {[%emt 0:03:43]} Nd4 {[%emt 0:17:21]} 19. Bxd4 {[%emt 0:01:18]} exd4 {[%emt 0:00:25]} 20. Nxf4 {[%emt 0:05:01]} gxf4 {[%emt 0:00:07]} 21. Kh1 {[%emt 0:00:32]} Be5 {[%emt 0:00:15]} 22. a4 {[%emt 0:03:46]} a5 {[%emt 0:03:21]} 23. Qd1 {[%emt 0:05:22]} Qh4 {[%emt 0:00:18]} 24. Rg1 {[%emt 0:04:10]} Rag8 {[%emt 0:00:07]} 25. Qe2 {[%emt 0:00:53]} b6 {[%emt 0:02:50]} 26. Rab1 {[%emt 0:01:38]} Rg5 {[%emt 0:00:28]} 27. Rbc1 {[%emt 0:03:31]} R8g6 {[%emt 0:00:34]} 28. Rb1 {[%emt 0:00:20]} Rh6 {[%emt 0:00:33]} 29. Qf1 {[%emt 0:00:39]} Rg7 {[%emt 0:06:03]} 30. Rc1 {[%emt 0:01:39]} Qg5 {[%emt 0:01:23]} 31. Rb1 {[%emt 0:02:02]} Rh4 {[%emt 0:00:25]} 32. Rc1 {[%emt 0:02:35]} Qh6 {[%emt 0:00:13]} 33. Rd1 {[%emt 0:05:34]} Rg6 {[%emt 0:00:12]} 34. Rd2 {[%emt 0:03:21]} Bxh3 {[%emt 0:01:43]} 35. gxh3 {[%emt 0:00:11]} Rxh3 {[%emt 0:00:01]} 36. Rg2 {[%emt 0:01:32]} Rxf3 {[%emt 0:00:06]} 37. Rxg6 {[%emt 0:00:38]} fxg6 {[%emt 0:00:27]} 38. Qg2 {[%emt 0:00:19]} Rh3 {[%emt 0:00:05]} 39. f3 {[%emt 0:00:09]} Rg3 {[%emt 0:00:05]} 40. Qf1 {[%emt 0:00:23]} Qh4 {[%emt 0:01:10]} 41. Rg2 {[%emt 0:02:59]} h5 {[%emt 0:00:02]} 42. Kg1 {[%emt 0:02:04]} g5 {[%emt 0:15:10]} 43. Qf2 {[%emt 0:00:22]} Qh3 {[%emt 0:00:17]} 44. Qd2 {[%emt 0:03:59]} Kh7 {[%emt 0:03:23]} 45. Nf1 {[%emt 0:04:12]} Rxf3 {[%emt 0:01:42]} 0-1

[Event "Vienna Chess Open 2019"]
[Site "Vienna"]
[Date "2019.08.22"]
[Round "7.12"]
[White "Hecht, Carsten"]
[Black "Schreiner, Peter"]
[Result "1/2-1/2"]
[ECO "C78"]
[WhiteElo "2481"]
[BlackElo "2300"]
[Annotator "ChessBase"]
[PlyCount "66"]
[EventDate "2019.08.17"]
[EventType "swiss"]
[EventCountry "AUT"]
[SourceTitle "playchess.com"]
[Source "ChessBase"]
[SourceQuality "1"]
[TimeControl "40/5400+30:1800+30"]

1. e4 {[%emt 0:00:00]} e5 {[%emt 0:00:42]} 2. Nf3 {[%emt 0:00:00]} Nc6 {[%emt 0:00:08]} 3. Bb5 {[%emt 0:00:00]} a6 {[%emt 0:00:22]} 4. Ba4 {[%emt 0:00:00]} Nf6 {[%emt 0:00:08]} 5. O-O {[%emt 0:00:00]} b5 {[%emt 0:00:06]} 6. Bb3 {[%emt 0:00:03]} Bb7 {[%emt 0:00:08]} 7. d3 {[%emt 0:01:29]} Be7 {[%emt 0:00:10]} 8. Nc3 {[%emt 0:04:49]} O-O {[%emt 0:00:15]} 9. a3 {[%emt 0:09:43]} d6 {[%emt 0:00:40]} 10. Nd5 {[%emt 0:13:07]} Nxd5 {[%emt 0:00:46]} 11. Bxd5 {[%emt 0:04:28]} Qc8 {[%emt 0:00:26]} 12. Re1 {[%emt 0:06:59]} Nd8 {[%emt 0:11:49]} 13. Bxb7 {[%emt 0:00:44]} Qxb7 {[%emt 0:03:55]} 14. d4 {[%emt 0:00:14]} Bf6 {[%emt 0:01:11]} 15. c3 {[%emt 0:18:35]} Ne6 {[%emt 0:14:32]} 16. dxe5 {[%emt 0:07:04]} dxe5 {[%emt 0:01:25]} 17. Qc2 {[%emt 0:00:48]} Rfd8 {[%emt 0:03:14]} 18. Be3 {[%emt 0:01:01]} Rd6 {[%emt 0:04:44]} 19. Rad1 {[%emt 0:00:55]} Rad8 {[%emt 0:01:43]} 20. Rxd6 {[%emt 0:00:10]} Rxd6 {[%emt 0:00:09]} 21. Re2 {[%emt 0:06:03]} h6 {[%emt 0:21:17]} 22. Rd2 {[%emt 0:01:21]} Rxd2 {[%emt 0:03:14]} 23. Nxd2 {[%emt 0:00:09]} Bg5 {[%emt 0:01:12]} 24. Bxg5 {[%emt 0:01:47]} hxg5 {[%emt 0:02:23]} 25. Qd3 {[%emt 0:00:16]} Qc6 {[%emt 0:04:47]} 26. Nf1 {[%emt 0:04:01]} f6 {[%emt 0:06:56]} 27. Ne3 {[%emt 0:01:03]} Kf7 {[%emt 0:02:47]} 28. g3 {[%emt 0:05:38]} Nc5 {[%emt 0:09:36]} 29. Qd8 {[%emt 0:01:09]} Ne6 {[%emt 0:01:10]} 30. Qd3 {[%emt 0:00:27]} Ke8 {[%emt 0:00:46]} 31. b4 {[%emt 0:00:45]} Qd7 {[%emt 0:01:14]} 32. Qxd7+ {[%emt 0:00:15]} Kxd7 {[%emt 0:00:01]} 33. Kf1 {[%emt 0:00:39]} c6 {[%emt 0:01:05]} 1/2-1/2

[Event "Vienna Chess Open 2019"]
[Site "Vienna"]
[Date "2019.08.22"]
[Round "7.12"]
[White "Muckle, Julius"]
[Black "Valsecchi, Alessio"]
[Result "0-1"]
[ECO "D80"]
[WhiteElo "2368"]
[BlackElo "2494"]
[Annotator "ChessBase"]
[PlyCount "142"]
[EventDate "2019.08.17"]
[EventType "swiss"]
[EventCountry "AUT"]
[SourceTitle "playchess.com"]
[Source "ChessBase"]
[SourceQuality "1"]
[TimeControl "40/5400+30:1800+30"]

1. d4 {[%emt 0:00:00]} Nf6 {[%emt 0:00:00]} 2. c4 {[%emt 0:00:00]} g6 {[%emt 0:00:04]} 3. Nc3 {[%emt 0:00:00]} d5 {[%emt 0:00:08]} 4. Bg5 {[%emt 0:00:00]} Ne4 {[%emt 0:00:36]} 5. Bh4 {[%emt 0:00:00]} Nxc3 {[%emt 0:00:31]} 6. bxc3 {[%emt 0:00:00]} dxc4 {[%emt 0:00:14]} 7. e3 {[%emt 0:00:07]} Be6 {[%emt 0:00:10]} 8. Rb1 {[%emt 0:00:50]} c5 {[%emt 0:01:04]} 9. Qa4+ {[%emt 0:13:54]} Qd7 {[%emt 0:08:33]} 10. Qxd7+ {[%emt 0:02:20]} Nxd7 {[%emt 0:00:46]} 11. Rxb7 {[%emt 0:00:10]} cxd4 {[%emt 0:03:36]} 12. exd4 {[%emt 0:00:41]} Bh6 {[%emt 0:02:32]} 13. Nf3 {[%emt 0:13:21]} Bd5 {[%emt 0:26:42]} 14. Rb4 {[%emt 0:04:52]} O-O {[%emt 0:10:03]} 15. Bxc4 {[%emt 0:01:56]} Bxc4 {[%emt 0:01:10]} 16. Rxc4 {[%emt 0:00:01]} Rfc8 {[%emt 0:00:10]} 17. Rxc8+ {[%emt 0:00:24]} Rxc8 {[%emt 0:00:03]} 18. Ke2 {[%emt 0:09:51]} Rxc3 {[%emt 0:01:07]} 19. Rb1 {[%emt 0:00:04]} Rc2+ {[%emt 0:13:30]} 20. Kf1 {[%emt 0:05:10]} Rxa2 {[%emt 0:01:42]} 21. Bxe7 {[%emt 0:01:36]} Bf8 {[%emt 0:01:05]} 22. Rb7 {[%emt 0:01:06]} Bxe7 {[%emt 0:01:07]} 23. Rxd7 {[%emt 0:00:01]} Kf8 {[%emt 0:04:31]} 24. Ne5 {[%emt 0:06:07]} a5 {[%emt 0:01:01]} 25. d5 {[%emt 0:01:51]} f6 {[%emt 0:05:42]} 26. Nc4 {[%emt 0:08:37]} Ke8 {[%emt 0:06:03]} 27. Rc7 {[%emt 0:04:32]} Kd8 {[%emt 0:01:59]} 28. Rc6 {[%emt 0:02:21]} Bb4 {[%emt 0:05:25]} 29. Rxf6 {[%emt 0:01:56]} a4 {[%emt 0:00:19]} 30. g4 {[%emt 0:02:44]} a3 {[%emt 0:00:26]} 31. Ra6 {[%emt 0:02:58]} Bc5 {[%emt 0:00:13]} 32. Ra5 {[%emt 0:01:49]} Rxf2+ {[%emt 0:00:30]} 33. Ke1 {[%emt 0:00:00]} a2 {[%emt 0:00:16]} 34. Nd2 {[%emt 0:00:21]} Rxh2 {[%emt 0:02:34]} 35. Rxa2 {[%emt 0:00:16]} Kd7 {[%emt 0:01:35]} 36. Ra4 {[%emt 0:02:07]} Kd6 {[%emt 0:01:22]} 37. Nb3 {[%emt 0:04:57]} Be3 {[%emt 0:00:57]} 38. Ra5 {[%emt 0:01:30]} Rb2 {[%emt 0:00:15]} 39. Rb5 {[%emt 0:00:06]} Ke5 {[%emt 0:00:46]} 40. Kd1 {[%emt 0:02:24]} h6 {[%emt 0:00:31]} 41. Ke1 {[%emt 0:31:23]} Rg2 {[%emt 0:07:45]} 42. Na5 {[%emt 0:00:00]} Bd2+ {[%emt 0:00:41]} 43. Kf1 {[%emt 0:00:00]} Rxg4 {[%emt 0:00:02]} 44. Nc6+ {[%emt 0:00:00]} Kd6 {[%emt 0:01:17]} 45. Ke2 {[%emt 0:00:00]} Bg5 {[%emt 0:01:41]} 46. Kd3 {[%emt 0:00:00]} Bf6 {[%emt 0:01:55]} 47. Nb4 {[%emt 0:00:00]} Bd4 {[%emt 0:04:26]} 48. Na2 {[%emt 0:00:00]} h5 {[%emt 0:00:50]} 49. Nc1 {[%emt 0:00:00]} Bc5 {[%emt 0:00:58]} 50. Nb3 {[%emt 0:00:00]} Bg1 {[%emt 0:00:35]} 51. Nd2 {[%emt 0:00:00]} Rd4+ {[%emt 0:01:33]} 52. Ke2 {[%emt 0:00:00]} Rg4 {[%emt 0:05:04]} 53. Kf3 {[%emt 0:00:00]} Ke5 {[%emt 0:00:32]} 54. Ke2 {[%emt 0:01:32]} h4 {[%emt 0:00:30]} 55. d6+ {[%emt 0:04:29]} Kxd6 {[%emt 0:00:04]} 56. Rg5 {[%emt 0:00:03]} Rxg5 57. Ne4+ Ke5 {[%emt 0:04:13]} 58. Nxg5 {[%emt 0:00:02]} Kf5 {[%emt 0:01:11]} 59. Nh3 {[%emt 0:05:58]} Bb6 {[%emt 0:00:17]} 60. Kf3 {[%emt 0:00:02]} Ba7 {[%emt 0:00:09]} 61. Kg2 {[%emt 0:02:49]} Kg4 {[%emt 0:00:09]} 62. Kh2 {[%emt 0:00:01]} Bb6 {[%emt 0:00:20]} 63. Kg2 {[%emt 0:00:00]} Be3 {[%emt 0:00:10]} 64. Kh2 {[%emt 0:00:08]} Kf3 {[%emt 0:00:10]} 65. Kh1 {[%emt 0:01:26]} Kg3 {[%emt 0:00:16]} 66. Ng1 {[%emt 0:00:02]} Bxg1 {[%emt 0:00:06]} 67. Kxg1 {[%emt 0:00:02]} g5 68. Kh1 g4 {[%emt 0:00:26]} 69. Kg1 {[%emt 0:00:01]} Kh3 {[%emt 0:00:26]} 70. Kh1 {[%emt 0:00:01]} g3 {[%emt 0:00:08]} 71. Kg1 {[%emt 0:00:00]} g2 {[%emt 0:00:07]} 0-1

[Event "Vienna Chess Open 2019"]
[Site "Vienna"]
[Date "2019.08.22"]
[Round "7.12"]
[White "Rubil, Marko"]
[Black "Bawart, Markus"]
[Result "1-0"]
[ECO "B03"]
[WhiteElo "2248"]
[BlackElo "2364"]
[Annotator "NA"]
[PlyCount "130"]
[EventDate "2019.08.17"]
[EventType "swiss"]
[EventCountry "AUT"]
[SourceTitle "playchess.com"]
[Source "ChessBase"]
[SourceQuality "1"]
[TimeControl "40/5400+30:1800+30"]

1. e4 {[%emt 0:00:00]} Nf6 {[%emt 0:00:00]} 2. e5 {[%emt 0:00:00]} Nd5 {[%emt 0:00:00]} 3. d4 {[%emt 0:00:00]} d6 {[%emt 0:00:00]} 4. c4 {[%emt 0:00:00]} Nb6 {[%emt 0:00:00]} 5. exd6 {[%emt 0:00:00]} cxd6 {[%emt 0:00:01]} 6. Nc3 {[%emt 0:00:00]} g6 {[%emt 0:00:07]} 7. Be3 {[%emt 0:00:04]} Bg7 {[%emt 0:00:04]} 8. Rc1 {[%emt 0:00:05]} O-O {[%emt 0:00:06]} 9. b3 {[%emt 0:00:07]} N6d7 {[%emt 0:00:43]} 10. g3 {[%emt 0:23:03]} Nf6 {[%emt 0:03:11]} 11. h3 {[%emt 0:03:28]} d5 {[%emt 0:01:50]} 12. Bg2 {[%emt 0:01:42]} dxc4 {[%emt 0:00:15]} 13. bxc4 {[%emt 0:00:06]} Qa5 {[%emt 0:03:11]} 14. Nge2 {[%emt 0:03:57]} Nc6 {[%emt 0:00:51]} 15. O-O {[%emt 0:01:58]} Qa6 {[%emt 0:00:57]} 16. Qa4 {[%emt 0:23:05]} Qxa4 {[%emt 0:01:14]} 17. Nxa4 {[%emt 0:00:02]} Rd8 {[%emt 0:02:22]} 18. Rfd1 {[%emt 0:01:47]} e6 {[%emt 0:02:44]} 19. Kh2 {[%emt 0:05:45]} Bf8 {[%emt 0:03:19]} 20. Nec3 {[%emt 0:08:49]} Bd7 {[%emt 0:00:51]} 21. Bg5 {[%emt 0:08:53]} Be7 {[%emt 0:01:00]} 22. Nc5 {[%emt 0:00:36]} Be8 {[%emt 0:17:07]} 23. Nxb7 {[%emt 0:04:48]} Rxd4 {[%emt 0:16:52]} 24. Nb5 {[%emt 0:00:41]} Rxd1 {[%emt 0:03:17]} 25. Rxd1 {[%emt 0:00:00]} Ne5 {[%emt 0:12:05]} 26. Nc7 {[%emt 0:02:08]} Rc8 {[%emt 0:00:51]} 27. Nxe8 {[%emt 0:00:19]} Rxe8 {[%emt 0:00:36]} 28. c5 {[%emt 0:01:55]} Rc8 {[%emt 0:04:38]} 29. f4 {[%emt 0:04:49]} Nc4 {[%emt 0:01:07]} 30. Rc1 {[%emt 0:03:23]} Ne3 {[%emt 0:00:10]} 31. Bxf6 {[%emt 0:00:56]} Bxf6 {[%emt 0:00:07]} 32. Nd6 {[%emt 0:00:01]} Rb8 {[%emt 0:03:44]} 33. c6 {[%emt 0:02:09]} Bd8 {[%emt 0:00:11]} 34. Nb7 {[%emt 0:00:35]} Bb6 {[%emt 0:02:03]} 35. Bf3 {[%emt 0:00:25]} Kf8 {[%emt 0:02:47]} 36. Rc3 {[%emt 0:01:14]} Rc8 {[%emt 0:03:05]} 37. a4 {[%emt 0:00:54]} Nd5 {[%emt 0:05:27]} 38. Bxd5 {[%emt 0:00:37]} exd5 {[%emt 0:00:01]} 39. a5 {[%emt 0:00:20]} Bd4 {[%emt 0:03:25]} 40. Rc2 {[%emt 0:00:42]} Ke7 {[%emt 0:00:37]} 41. Kg2 {[%emt 0:09:44]} Be3 {[%emt 0:01:51]} 42. Kf3 {[%emt 0:05:28]} d4 {[%emt 0:01:55]} 43. Ke4 {[%emt 0:03:43]} h5 {[%emt 0:02:24]} 44. g4 {[%emt 0:02:47]} hxg4 {[%emt 0:02:17]} 45. hxg4 {[%emt 0:00:01]} f5+ {[%emt 0:07:43]} 46. gxf5 {[%emt 0:03:38]} gxf5+ {[%emt 0:01:50]} 47. Kxf5 {[%emt 0:03:44]} Rf8+ {[%emt 0:00:30]} 48. Ke4 {[%emt 0:00:25]} Rxf4+ {[%emt 0:00:06]} 49. Kd3 {[%emt 0:03:25]} Rf8 {[%emt 0:00:56]} 50. Rc5 {[%emt 0:01:38]} Ke6 {[%emt 0:01:53]} 51. Ke4 {[%emt 0:00:36]} Rf4+ {[%emt 0:00:28]} 52. Kd3 {[%emt 0:00:00]} Rf8 {[%emt 0:00:17]} 53. Ke4 {[%emt 0:00:08]} Rf4+ {[%emt 0:00:03]} 54. Kd3 {[%emt 0:00:02]} Rf8 {[%emt 0:00:02]} 55. Rc2 {[%emt 0:00:57]} Kd5 {[%emt 0:01:55]} 56. Rc5+ {[%emt 0:00:02]} Ke6 {[%emt 0:00:12]} 57. Rc2 {[%emt 0:00:04]} Kd5 {[%emt 0:00:41]} 58. Rc5+ {[%emt 0:00:06]} Ke6 {[%emt 0:00:01]} 59. Kc4 {[%emt 0:00:31]} d3 {[%emt 0:01:12]} 60. Rh5 {[%emt 0:02:54]} d2 {[%emt 0:00:29]} 61. Rh1 {[%emt 0:00:31]} Rc8 {[%emt 0:01:42]} 62. Kd3 {[%emt 0:00:39]} Bg5 {[%emt 0:00:38]} 63. Ke4 {[%emt 0:00:29]} Rxc6 {[%emt 0:00:38]} 64. Rg1 {[%emt 0:00:31]} Rc4+ {[%emt 0:01:13]} 65. Kd3 {[%emt 0:00:30]} Rc1 {[%emt 0:00:12]} 1-0

[Event "Vienna Chess Open 2019"]
[Site "Vienna"]
[Date "2019.08.23"]
[Round "8.1"]
[White "Shengelia, David"]
[Black "Peralta, Fernando"]
[Result "1/2-1/2"]
[ECO "E51"]
[WhiteElo "2523"]
[BlackElo "2572"]
[Annotator "ChessBase"]
[PlyCount "44"]
[EventDate "2019.08.17"]
[EventType "swiss"]
[EventCountry "AUT"]
[SourceTitle "playchess.com"]
[Source "ChessBase"]
[SourceQuality "1"]
[TimeControl "40/5400+30:1800+30"]

1. d4 {[%emt 0:00:00]} Nf6 {[%emt 0:00:04]} 2. c4 {[%emt 0:00:07]} e6 {[%emt 0:00:12]} 3. Nc3 {[%emt 0:00:49]} Bb4 {[%emt 0:00:10]} 4. e3 {[%emt 0:00:42]} O-O {[%emt 0:00:15]} 5. Nf3 {[%emt 0:00:36]} d5 {[%emt 0:00:47]} 6. Bd2 {[%emt 0:01:08]} b6 {[%emt 0:00:30]} 7. cxd5 {[%emt 0:01:08]} exd5 {[%emt 0:00:11]} 8. Rc1 {[%emt 0:00:38]} Bb7 {[%emt 0:00:29]} 9. Bd3 {[%emt 0:01:00]} Be7 {[%emt 0:00:31]} 10. O-O {[%emt 0:02:12]} c5 {[%emt 0:00:18]} 11. Ne5 {[%emt 0:01:35]} Nc6 {[%emt 0:01:01]} 12. Be1 {[%emt 0:02:08]} Bd6 {[%emt 0:01:47]} 13. Nxc6 {[%emt 0:37:29]} Bxc6 {[%emt 0:00:40]} 14. b3 {[%emt 0:08:28]} Re8 {[%emt 0:06:05]} 15. g3 {[%emt 0:09:10]} Qd7 {[%emt 0:07:11]} 16. Qf3 {[%emt 0:01:44]} Ne4 {[%emt 0:07:45]} 17. Qg2 {[%emt 0:07:38]} cxd4 {[%emt 0:22:44]} 18. exd4 {[%emt 0:00:05]} Rac8 {[%emt 0:00:08]} 19. a4 {[%emt 0:04:21]} Bf8 {[%emt 0:11:57]} 20. Ba6 {[%emt 0:02:42]} Bb7 {[%emt 0:01:38]} 21. Bb5 {[%emt 0:00:21]} Bc6 {[%emt 0:00:06]} 22. Ba6 {[%emt 0:00:18]} Bb7 {[%emt 0:00:36]} 1/2-1/2

[Event "Vienna Chess Open 2019"]
[Site "Vienna"]
[Date "2019.08.23"]
[Round "8.1"]
[White "Schwabeneder, Florian"]
[Black "Morgunov, Daniel"]
[Result "1/2-1/2"]
[ECO "B92"]
[WhiteElo "2404"]
[BlackElo "2404"]
[Annotator "NA"]
[PlyCount "61"]
[EventDate "2019.08.17"]
[EventType "swiss"]
[EventCountry "AUT"]
[SourceTitle "playchess.com"]
[Source "ChessBase"]
[SourceQuality "1"]
[TimeControl "40/5400+30:1800+30"]

1. e4 {[%emt 0:00:00]} c5 {[%emt 0:00:00]} 2. Nc3 {[%emt 0:01:03]} a6 {[%emt 0:00:00]} 3. Nf3 {[%emt 0:02:36]} d6 {[%emt 0:00:11]} 4. d4 {[%emt 0:00:38]} cxd4 {[%emt 0:00:05]} 5. Nxd4 {[%emt 0:00:07]} Nf6 {[%emt 0:00:05]} 6. Be2 {[%emt 0:00:30]} e5 {[%emt 0:00:40]} 7. Nb3 {[%emt 0:00:32]} Be7 {[%emt 0:00:44]} 8. Bg5 {[%emt 0:01:31]} Be6 {[%emt 0:03:52]} 9. Bxf6 {[%emt 0:01:44]} Bxf6 {[%emt 0:00:06]} 10. Qd3 {[%emt 0:00:12]} O-O {[%emt 0:07:45]} 11. Rd1 {[%emt 0:08:59]} Be7 {[%emt 0:01:36]} 12. Nd5 {[%emt 0:00:50]} Bxd5 {[%emt 0:02:41]} 13. Qxd5 {[%emt 0:00:12]} Qc7 {[%emt 0:02:53]} 14. c3 {[%emt 0:03:15]} Nd7 {[%emt 0:00:20]} 15. O-O {[%emt 0:02:00]} Nf6 {[%emt 0:05:06]} 16. Qd3 {[%emt 0:02:38]} Rfd8 {[%emt 0:03:22]} 17. Bf3 {[%emt 0:11:09]} b5 {[%emt 0:02:14]} 18. Na1 {[%emt 0:18:20]} Qa5 {[%emt 0:16:42]} 19. a3 {[%emt 0:03:08]} Qa4 {[%emt 0:02:19]} 20. Qb1 {[%emt 0:08:24]} Rac8 {[%emt 0:05:24]} 21. Rfe1 {[%emt 0:02:16]} a5 {[%emt 0:09:05]} 22. Nc2 {[%emt 0:02:08]} Qb3 {[%emt 0:00:27]} 23. Rd2 {[%emt 0:11:49]} g6 {[%emt 0:05:06]} 24. Ne3 {[%emt 0:01:03]} Qa4 {[%emt 0:08:47]} 25. g3 {[%emt 0:05:51]} b4 {[%emt 0:08:01]} 26. cxb4 {[%emt 0:02:03]} axb4 {[%emt 0:00:04]} 27. b3 {[%emt 0:00:10]} Qa7 {[%emt 0:04:02]} 28. axb4 {[%emt 0:01:37]} Qb6 {[%emt 0:00:53]} 29. Nc4 {[%emt 0:05:38]} Qxb4 {[%emt 0:00:23]} 30. Qd1 {[%emt 0:00:45]} Kg7 {[%emt 0:04:32]} 31. h4 {[%emt 0:00:21]} 1/2-1/2

[Event "Vienna Chess Open 2019"]
[Site "Vienna"]
[Date "2019.08.23"]
[Round "8.1"]
[White "Kaasen, Tor Fredrik"]
[Black "Cvitan, Ognjen"]
[Result "1/2-1/2"]
[ECO "B52"]
[WhiteElo "2373"]
[BlackElo "2493"]
[Annotator "ChessBase"]
[PlyCount "26"]
[EventDate "2019.08.17"]
[EventType "swiss"]
[EventCountry "AUT"]
[SourceTitle "playchess.com"]
[Source "ChessBase"]
[SourceQuality "1"]
[TimeControl "40/5400+30:1800+30"]

1. e4 {[%emt 0:00:00]} c5 {[%emt 0:01:04]} 2. Nf3 {[%emt 0:00:03]} d6 {[%emt 0:03:34]} 3. Bb5+ {[%emt 0:00:11]} Bd7 {[%emt 0:00:11]} 4. Bxd7+ {[%emt 0:00:18]} Qxd7 {[%emt 0:00:07]} 5. c4 {[%emt 0:00:06]} Nf6 {[%emt 0:00:58]} 6. Nc3 {[%emt 0:00:07]} g6 {[%emt 0:00:14]} 7. d4 {[%emt 0:00:21]} cxd4 {[%emt 0:00:05]} 8. Nxd4 {[%emt 0:00:06]} Bg7 {[%emt 0:00:08]} 9. h3 {[%emt 0:00:22]} Qc7 {[%emt 0:00:58]} 10. b3 {[%emt 0:00:24]} Qa5 {[%emt 0:00:13]} 11. Bd2 {[%emt 0:00:06]} Nxe4 {[%emt 0:00:16]} 12. Nxe4 {[%emt 0:00:06]} Qe5 {[%emt 0:00:06]} 13. Qb1 {[%emt 0:00:06]} Bf8 1/2-1/2